Cogmind - Beta 14 @@@ ROGUE MODE // 2024.08.08 @ 17:18:54 Player: Sgt. SmokeWeed Result: Destroyed by P-60 Hacker with Shock Rifle Performance ------------- Evolutions (0) 0 Regions Visited (4) 800 Robots Destroyed (29) 145 Value Destroyed (740) 740 Prototype IDs (11) 220 Alien Tech Used (0) 0 Bonus (0) 0 TOTAL SCORE: 1905 Bonus ------- None Cogmind --------- Core Integrity 0/250 Matter 290/300 Energy 100/100 System Corruption 3% Temperature Cool (0) Movement Core (100) Ox1 Location -9/Recycling Parts ------- > --- POWER (1) -------- (None) > --- PROPULSION (2) --- (None) > --- UTILITY (2) ------ Subdweller Optics > --- WEAPON (2) ------- Shotgun > --- INVENTORY (5) ---- Subdweller Power Source Subdweller Power Source Scrap Shield Fragment (46) Scrap Shield Fragment (46) Scrap Shield Fragment (44) Peak State ------------ > --- POWER ------------ Improved Ion Engine > --- PROPULSION ------- Improved Treads Improved Treads > --- UTILITY ---------- Subdweller Optics > --- WEAPON ----------- Subdweller Machine Gun Improved Light Cannon > --- INVENTORY -------- Subdweller Power Source Subdweller Power Source Scrap Shield Fragment Scrap Shield Fragment Scrap Shield Fragment [Rating: 13] Favorites ----------- Power Ion Engine Engine Ion Engine Propulsion Light Treads Treads Light Treads Utility Subdweller Optics Device Subdweller Optics Protection Scrap Shield Weapon Subdweller Machine Gun Energy Gun Medium Laser Ballistic Gun Subdweller Machine Gun Ballistic Cannon Improved Light Cannon Launcher Grenade Launcher Build | -11 -10 -10 -10 -9 ------- Run | Yrd Mat Min Sub Rec Slots Evolved . | . . . . . Power . | . . . . . Propulsion . | . . . . . Utility . | . . . . . Weapon . | . . . . . Parts Attached 22 | 5 1 . 6 10 Power 5 | 1 . . 2 2 Engine 5 | 1 . . 2 2 Core . | . . . . . Reactor . | . . . . . Propulsion 7 | 2 . . . 5 Treads 7 | 2 . . . 5 Leg . | . . . . . Wheel . | . . . . . Hover . | . . . . . Flight . | . . . . . Utility 2 | . . . 2 . Device 1 | . . . 1 . Storage . | . . . . . Processor . | . . . . . Hackware . | . . . . . Protection 1 | . . . 1 . Artifact . | . . . . . Weapon 8 | 2 1 . 2 3 Energy Gun 3 | 2 . . 1 . Energy Cannon . | . . . . . Ballistic Gun 2 | . . . 1 1 Ballistic Cannon 2 | . . . . 2 Launcher 1 | . 1 . . . Special Weapon . | . . . . . Impact Weapon . | . . . . . Slashing Weapon . | . . . . . Piercing Weapon . | . . . . . Special Melee Weapon . | . . . . . Unidentified Prototypes . | . . . . . Parts Lost 9 | . . . 4 5 Power 1 | . . . . 1 Propulsion 4 | . . . 2 2 Utility 1 | . . . 1 . Weapon 3 | . . . 1 2 Highest Loss Streak 3 | . . . 2 3 To Critical Strikes 1 | . . . 1 . Average Slot Usage (%) 67 | . 70 71 63 68 Engine 13 | . 14 14 14 11 Treads 17 | . 28 28 14 14 Device 5 | . . . 1 14 Protection 3 | . . . 9 . Energy Gun 8 | . 14 14 7 5 Ballistic Gun 9 | . . . 11 13 Ballistic Cannon 3 | . . . . 8 Launcher 4 | . 13 14 4 . Peak Build Rating 13 | 5 5 5 12 13 Average Rating 8 | 4 4 5 9 10 On Entrance 5 | . 5 5 5 11 Naked Turns . | . . . . . Heaviest Build 30 | 9 10 10 30 17 Greatest Support 46 | 40 40 40 40 46 Greatest Overweight (x) 9 | . . . 9 4 Average Overweight (x) . | . . . 1 . Largest Inventory Capacity 5 | 5 5 5 5 5 Average Capacity 5 | 5 5 5 5 5 Most Carried 5 | . . . 5 5 Average Carried 2 | . . . . 4 Final Capacity 5 | 5 5 5 5 5 Final Carried 5 | . . . 5 5 Class Distribution -------------------- 87% | Mutant 11% | Subdweller-Mutant Dominant Class ---------------- Mutant | -10/Materials Mutant | -10/Mines Mutant | -10/Subcaves Mutant | -9/Recycling Resources | -11 -10 -10 -10 -9 ----------- Run | Yrd Mat Min Sub Rec Matter Collected 744 | 248 79 43 174 200 Remotely . | . . . . . Salvage Created 1151 | . 150 . 130 871 Parts 47 | . 10 . 9 28 Haulers Intercepted . | . . . . . Recyclers Shooed 1 | . . . . 1 Parts Field Recycled . | . . . . . Retrieved Matter . | . . . . . Parts Self-Destructed 11 | . . . 11 . Prevented . | . . . . . Kills | -11 -10 -10 -10 -9 ------- Run | Yrd Mat Min Sub Rec Combat Hostiles Destroyed 16 | . 4 . 6 6 Guns 6 | . 1 . 3 2 Cannons 4 | . . . . 4 AOE 6 | . 3 . 3 . Classes Destroyed 10 | . 4 . 3 3 Worker 1 | . 1 . . . Builder 1 | . 1 . . . Recycler 8 | . . . . 8 Turret 2 | . . . 2 . Watcher 1 | . 1 . . . Swarmer 1 | . . . 1 . Grunt 8 | . 4 . 2 2 Duelist 1 | . . . . 1 Sentry 3 | . . . . 3 Subdweller 3 | . . . 3 . Best Kill Streak 8 | . 3 . 2 8 Combat Bots Only 2 | . 2 . 2 2 Max Kills in Single Turn 2 | . 2 . 1 1 Gunslinging . | . . . . . Exploded 1 | . 1 . 1 . Melee . | . . . . . Uniques/NPCs Destroyed . | . . . . . Combat | -11 -10 -10 -10 -9 -------- Run | Yrd Mat Min Sub Rec Hostile Shots Fired 145 | . 26 . 74 45 Missed 54 | . 11 . 30 13 Damage Taken 1348 | . 200 . 633 515 Core 260 | . 53 . 66 141 Absorbed by Shields . | . . . . . Core Remaining (%) 100 | 100 . . . . Volleys Fired 93 | . 17 . 43 33 Largest 2 | . 2 . 2 2 Hottest 80 | . 80 . 80 80 Shots Fired 140 | . 28 . 61 51 Gun 101 | . 17 . 54 30 Cannon 21 | . . . . 21 Launcher 18 | . 11 . 7 . Special . | . . . . . Kinetic 71 | . . . 32 39 Thermal 51 | . 17 . 22 12 Explosive 18 | . 11 . 7 . Electromagnetic . | . . . . . Robot Hit Streak 10 | . 7 . 9 10 Robot Miss Streak 4 | . 2 . 4 2 Penetration Max . | . . . . . Secondary Targets . | . . . . . Shots Hit Robots 94 | . 18 . 37 39 Core Hits 44 | . 13 . 15 16 Critical Kills . | . . . . . Critical Parts Destroyed 2 | . . . 2 . Critical Strikes 7 | . 1 . 3 3 Burn 4 | . 1 . 1 2 Destroy 2 | . . . 2 . Blast 1 | . . . . 1 Melee Attacks . | . . . . . Impact . | . . . . . Slashing . | . . . . . Piercing . | . . . . . Sneak Attacks . | . . . . . Combat Hostiles . | . . . . . Follow-up Attacks . | . . . . . Damage Inflicted 2263 | . 611 . 849 803 Guns 1168 | . 137 . 604 427 Cannons 363 | . . . . 363 Explosions 719 | . 474 . 245 . Melee . | . . . . . Ramming 13 | . . . . 13 Kinetic 1059 | . . . 437 622 Thermal 472 | . 137 . 167 168 Explosive 719 | . 474 . 245 . Electromagnetic . | . . . . . Impact . | . . . . . Slashing . | . . . . . Piercing . | . . . . . Highest Corruption 3 | . . . . 3 Average Corruption 2 | . . . . 2 Corruption Purged . | . . . . . Corruption Blocked . | . . . . . Overload Shots . | . . . . . Overflow Damage 42 | . 42 . . . Projectiles . | . . . . . Explosions 42 | . 42 . . . Melee . | . . . . . Knockbacks 6 | . . . . 6 Impact . | . . . . . Kinetic 6 | . . . . 6 Secondary . | . . . . . Self-Inflicted Damage 21 | . 16 . 4 1 Shots 2 | . 1 . 1 . Rammed 1 | . . . . 1 Targets Rammed 2 | . . . . 2 Kicked . | . . . . . Crushed 1 | . . . . 1 Highest Temperature 498 | . 114 . 498 87 Average Temperature 67 | . 46 . 263 28 Received Heat Transfer 916 | . 117 . 736 63 Effects 2 | . . . 2 . Energy Bleed 1 | . . . 1 . Short Circuit 1 | . . . 1 . Siege Activations . | . . . . . Robots Corrupted . | . . . . . Combat Hostiles . | . . . . . Parts Fried . | . . . . . Impact Corruptions . | . . . . . Robots Melted . | . . . . . Combat Hostiles . | . . . . . Parts Melted 1 | . 1 . . . Heat Transferred 1517 | . 481 . 518 518 Parts Sabotaged . | . . . . . Parts Stolen . | . . . . . Parts Stripped . | . . . . . Power Chain Reactions . | . . . . . Alert | -11 -10 -10 -10 -9 ------- Run | Yrd Mat Min Sub Rec Peak Influence 225 | . 225 87 . 102 Initial 87 | . . 87 . 45 Average 58 | . 133 81 . 37 Maximum Alert Level 1 | . 1 . . . Low Security (%) 98 | 100 86 100 . 100 Level 1 1 | . 13 . . . Level 2 . | . . . . . Level 3 . | . . . . . Level 4 . | . . . . . Level 5 . | . . . . . High Security . | . . . . . Max Security . | . . . . . Squads Dispatched 1 | . 1 . . . Investigation 1 | . 1 . . . Extermination . | . . . . . Reinforcement . | . . . . . Assault . | . . . . . Garrison . | . . . . . Intercept . | . . . . . Searches Triggered . | . . . . . Construction Impeded . | . . . . . Haulers Reinforced . | . . . . . Active Scanning Responses . | . . . . . Cargo Convoy Interrupts . | . . . . . Stealth | -11 -10 -10 -10 -9 --------- Run | Yrd Mat Min Sub Rec Distress Signals 1 | . 1 . . . Communications Jammed . | . . . . . Distress Signals . | . . . . . Times Spotted 22 | . 8 . 8 6 Peak Tracking Total 4 | . 4 . 2 4 Tactical Retreats 5 | . 2 . 3 . Traps | -11 -10 -10 -10 -9 ------- Run | Yrd Mat Min Sub Rec Traps Triggered 2 | . 1 . 1 . Indirectly . | . . . . . Trap Hack Attempts . | . . . . . Triggered . | . . . . . Disarmed . | . . . . . Reprogrammed . | . . . . . Reused . | . . . . . Traps Extracted . | . . . . . Installed . | . . . . . Triggered . | . . . . . Machines | -11 -10 -10 -10 -9 ---------- Run | Yrd Mat Min Sub Rec Machines Disabled . | . . . . . Max in Single Turn . | . . . . . Machines Repaired . | . . . . . Machines Dismantled . | . . . . . Machines Sabotaged . | . . . . . Overloaded Fab Kills . | . . . . . Hacking | -11 -10 -10 -10 -9 --------- Run | Yrd Mat Min Sub Rec Machines Accessed 6 | . 1 . 1 4 Terminals 5 | . 1 . . 4 Fabricators . | . . . . . Repair Stations . | . . . . . Recycling Units . | . . . . . Scanalyzers . | . . . . . Garrison Access . | . . . . . Total Hacks 17 | . 3 . 9 5 Successful 14 | . 1 . 9 4 Failed 3 | . 2 . . 1 Catastrophic 1 | . 1 . . . Database Lockouts . | . . . . . Manual 8 | . 3 . . 5 Terminals 8 | . 3 . . 5 Fabricators . | . . . . . Repair Stations . | . . . . . Recycling Units . | . . . . . Scanalyzers . | . . . . . Garrison Access . | . . . . . Terminal Hacks 14 | . 1 . 9 4 Record 8 | . . . 8 . Branch Access Points 1 | . 1 . . . Zone Layout 4 | . . . . 4 Derelict Proto ID Bank 1 | . . . 1 . Fabricator Hacks . | . . . . . Repair Station Hacks . | . . . . . Recycling Unit Hacks . | . . . . . Scanalyzer . | . . . . . Garrison Access Hacks . | . . . . . Unauthorized Hacks . | . . . . . Terminals . | . . . . . Fabricators . | . . . . . Repair Stations . | . . . . . Recycling Units . | . . . . . Scanalyzers . | . . . . . Garrison Access . | . . . . . Data Cores Recovered . | . . . . . Used . | . . . . . Hacking Detections 2 | . 1 . . 1 Full Trace Events . | . . . . . Feedback Events . | . . . . . Feedback Blocked . | . . . . . Robot Schematics Acquired . | . . . . . Robots Built . | . . . . . Authchips . | . . . . . Time . | . . . . . Total Robot Build Rating . | . . . . . Part Schematics Acquired . | . . . . . Parts Built . | . . . . . Authchips . | . . . . . Time . | . . . . . Total Part Build Rating . | . . . . . Parts Repaired . | . . . . . Time . | . . . . . Parts Recycled . | . . . . . Recycled Matter . | . . . . . Retrieved Matter . | . . . . . Retrieved Components . | . . . . . Parts Scanalyzed . | . . . . . Part Schematics Acquired . | . . . . . Parts Damaged . | . . . . . Bothacking | -11 -10 -10 -10 -9 ------------ Run | Yrd Mat Min Sub Rec Used RIF Installer . | . . . . . Robots Hacked . | . . . . . Non-combat . | . . . . . Combat . | . . . . . Robot Hacks Applied . | . . . . . Relay Couplers Released . | . . . . . Fabnet Peak Effective % . | . . . . . Robots Rewired . | . . . . . Allies Hacked . | . . . . . Hacks Repelled . | . . . . . Allies | -11 -10 -10 -10 -9 -------- Run | Yrd Mat Min Sub Rec Total Allies . | . . . . . Largest Group . | . . . . . Highest-Rated Group . | . . . . . Highest-Rated Ally . | . . . . . Total Orders . | . . . . . Ally Attacks . | . . . . . Total Damage . | . . . . . Kills . | . . . . . Allies Corrupted . | . . . . . Allies Melted . | . . . . . Intel | -11 -10 -10 -10 -9 ------- Run | Yrd Mat Min Sub Rec Robot Analysis Total . | . . . . . Derelict Logs Recovered 1 | . . . 1 . Drone Launches . | . . . . . Drone Recoveries . | . . . . . Exploration | -11 -10 -10 -10 -9 ------------- Run | Yrd Mat Min Sub Rec Turns Passed 3236 | 88 300 426 1175 1247 Spaces Moved 1454 | 55 159 70 475 695 Core 265 | 6 . . 137 122 Treads 1189 | 49 159 70 338 573 Legs . | . . . . . Wheels . | . . . . . Hover . | . . . . . Flight . | . . . . . Fastest Speed 50 | 50 160 160 160 50 Average Speed 180 | 148 160 160 221 162 Slowest Speed 500 | 160 160 160 500 250 Overloaded Moves . | . . . . . Propulsion Burnouts . | . . . . . Robots Hopped . | . . . . . Cave-ins Triggered . | . . . . . Exploration Rate (%) 38 | 4 32 31 35 91 Regions Visited 4 Branch Regions 3 Pre-discovered Areas . | . . . . . Known Exits Taken 1 | . 1 . . . Unknown Exits Taken 3 | 1 . 1 1 . Scrap Searched 3 | . . 1 2 . Spaces Dug . | . . . . . Terrain Destroyed 112 | . 68 . 41 3 Melee . | . . . . . Projectile 3 | . . . . 3 AOE 109 | . 68 . 41 . Terrain Rammed . | . . . . . Walls Destroyed . | . . . . . Machines Disabled . | . . . . . Actions | -11 -10 -10 -10 -9 --------- Run | Yrd Mat Min Sub Rec Total 1916 | 59 177 384 538 758 Wait 325 | . . 315 . 10 Move 1450 | 54 158 69 474 695 Hop . | . . . . . Pick Up 8 | . . . 7 1 Fast Attach 19 | 5 1 . 5 8 Attach . | . . . . . Detach . | . . . . . Swap 3 | . . . 1 2 Drop 13 | . 1 . 5 7 Fire 93 | . 17 . 43 33 Melee . | . . . . . Ram 1 | . . . . 1 Kick . | . . . . . Crush 1 | . . . . 1 Escape Stasis . | . . . . . Rewire . | . . . . . Trap . | . . . . . Miscellaneous 3 | . . . 3 . Route ------- -11/Scrapyard -10/Materials (discovered 3 exits: [*Mat] / *Min x2) -10/Mines -10/Subcaves (discovered 3 exits: [*Mat x2] / *Rec) -9/Recycling (discovered 1 exit: [*Fac]) History --------- Turn | Location | Event 6 | -11/Scrapyard | Discovered new exit (range 14) 89 | -11/Scrapyard | Entered Materials 152 | -10/Materials | Discovered new exit (range 16) 198 | -10/Materials | Discovered new exit (range 16) 296 | -10/Materials | Identified exit to Mines 311 | -10/Materials | Build established: Mutant 389 | -10/Materials | Entered Mines 790 | -10/Mines | Discovered new exit (range 4) 815 | -10/Mines | Entered Subcaves 1101 | -10/Subcaves | Discovered new exit (range 11) 1178 | -10/Subcaves | Visited 4L-MR0's lab 1493 | -10/Subcaves | Shifting Twisted Machinery released Mak. Laser 1556 | -10/Subcaves | Shifting Twisted Machinery released Shrapnel Trap 1760 | -10/Subcaves | Build established: Subdweller-Mutant 1838 | -10/Subcaves | Discovered new exit (range 12) 1848 | -10/Subcaves | Discovered new exit (range 12) 1990 | -10/Subcaves | Entered Recycling 2126 | -9/Recycling | Build established: Mutant 2864 | -9/Recycling | Discovered new exit (range 15) 3169 | -9/Recycling | Core integrity fell below 50% 3182 | -9/Recycling | Core integrity fell below 20% 3212 | -9/Recycling | Lost 3 parts (1p1n1w) 3237 | -9/Recycling | Destroyed by P-60 Hacker with Shock Rifle Last Messages --------------- L-31 Rogue knocked back. Imp. Ion Engine destroyed. L-31 Rogue destroyed. Imp. Treads destroyed. Acquired Imp. Treads. P-60 Hacker knocked back. G-34 Mercenary knocked back. G-34 Mercenary suffers critical hit (Blast). G-34 Mercenary destroyed. Acquired 44 matter. R-06 Scavenger collects Rnf. Ion Engine. Y-45 Defender destroyed. R-06 Scavenger collects Lgt. Armor Plating. Acquired 12 matter. R-06 Scavenger collects Lgt. Treads. R-06 Scavenger collects Imp. Ion Engine. Acquired 4 matter. Imp. Light Cannon destroyed. Imp. Treads destroyed. Acquired Shotgun. Map ----- +----------------------------------------------------+ | ?????????????????????????????????????????????????? | | ?????????????????????????????????????????????????? | | ?????????????????????????????????????????????????? | | ?????????????????????????????????????????????????? | | ?????????????????????????????????????????????????? | | ?????????????????????????????????????????????????? | | ?????????????????????????????????????????????????? | | ?????????????????????????????????????????????????? | | ?????????????????????????????????????????????????? | | ?????????????????????????????????????????????????? | | ?????????????????????????????????????????????????? | | ?????????????????????????????????????????????????? | | ?????????????????????????????????????????????????? | | ?????????????????????????????????????????????????? | | ?????????????????????????????????????????????????? | | ????????????????????????????????################## | | ????????????????????????????????# | | ##??????????????????????????????# | | /#??????????????????????????????# | | #??????????????????????????????# | | #?????????############+#???????# | | #?????????# #######?# % | | #?#####???# !#%% ###########+######## | | #?# ##### = % %d %# % | | #?# /! % p% | | [#?# #####||% / = #@ & | | #### ##???# % % % # ####+######+######## | | ##T## #????#! ## ##?# #??????? | | #????# % ## #??# """ #??????? | | ###??#! ## #??# """"" #??????? | | ""#??# / ## #??# """"" #??????? | | T"#??# % ## #??# """"" #??????? | | ""#??# ## #??# """ #??????? | | ###??############### #??# #??????? | | ##?????????????????# #??# #??????? | | #?????????????????# #??###########??????? | | #?????????????????# #??# #??????????????? | | #?????????????????# ##########??????????? | | #??###########????# # #??????????? | | #??# #????# # " #??????????? | | #??# #????# # T #??????????? | | #??# #????# # " #??????????? | | #### #????# + #??????????? | | +## ""## """"" #????# # """ #??????????? | | # Y"#? """"" #????# # """ #??????????? | | # ""#???""""" #????# + """ #??????????? | | # ###????? ?????# # #??????????? | | " # ##########+######?# ##########??????????? | | " # #?# #????###????????????? | | " + #?# ###### ###??????????? | +----------------------------------------------------+ Best States ------------- Heat Dissipation 25 Energy Generation 15 Energy Capacity 265 Matter Stores 300 Matter Capacity 300 Sight Range 21 Terrain Scan Density 10 Armor Coverage 800 Evasion (%) 40 Recoil Reduction 2 Item Schematics ----------------- None Robot Schematics ------------------ None Fabricated ------------ Nothing Alien Tech Used ----------------- None Achievements -------------- None Challenges ------------ None Game ------ Seed CorruptionPortableSpecial Manual? 0 Play Time 00:17:21 Cumulative 67.1 hours Start 2024.08.08 @ 16:59:58 End 2024.08.08 @ 17:18:54 Sessions 1 Manual Loads 0 Difficulty Rogue Special Mode None Game No. 157 Rogue 82 Adventurer 75 Explorer 0 Win Type - Total 0 Types 0/0/0/0/0/0/0/0/0 Lore% 34 Gallery% 41 Achievement% 34 Wizard Run 0 Options --------- Layout 0 ASCII 0 Keyboard 0 Movement Mouse Keybinds 0 Fullscreen 1 Font 24/Smallcaps Map View 76x50 Zoom Use 0% Tactical HUD 0 Map Filters NONE Filters NONE Steam 1 RUN: 0fc00fb1-6950-465e-9846-69d4a1b3c3ef